fUST/lending_fUST_20250105
["ID","MTS","AMOUNT","RATE_DAILY","PERIOD"]
[347660847,1736033443671,-319.03413243,0.00019178,2]
[347660848,1736033443683,-180.96586757,0.00019178,2]
[347660849,1736033443694,-501.5103037,0.00019178,2]
[347660850,1736033443703,-746.87,0.00019178,2]
[347660851,1736033443712,-469.18353225,0.00019178,2]
[347660852,1736033443722,-200.0,0.00019178,2]
[347660853,1736033443733,-500.0,0.00019178,2]
[347660854,1736033443743,-500.0,0.00019178,2]
[347660855,1736033443753,-500.0,0.00019178,2]
[347660856,1736033443762,-500.0,0.00019178,2]
[347660857,1736033443771,-151.0,0.00019178,2]
[347660858,1736033443780,-500.0,0.00019178,2]
[347660859,1736033443789,-500.0,0.00019178,2]
[347660860,1736033443798,-151.0,0.00019178,2]
[347660861,1736033443807,-151.0,0.00019178,2]
[347660862,1736033443816,-151.0,0.00019178,2]
[347660863,1736033443825,-151.0,0.00019178,2]
[347660864,1736033443835,-500.0,0.00019178,2]
[347660865,1736033443844,-151.0,0.00019178,2]
[347660866,1736033443854,-153.159792,0.00019178,2]
[347660867,1736033443863,-500.0,0.00019178,2]
[347660868,1736033443872,-500.0,0.00019178,2]
[347660869,1736033443881,-500.0,0.00019178,2]
[347660870,1736033443890,-151.0,0.00019178,2]
[347660871,1736033443900,-491.24350398,0.00019178,2]
[347660872,1736033443912,-8.75649602,0.00019178,2]
[347660873,1736033443921,-231.5219816,0.00019178,2]
[347660874,1736033443941,-440.17001128,0.00019178,2]
[347660875,1736033443994,-10795.59998975,0.00018985,2]
[347660892,1736033446439,-6504.14778161,0.00018985,2]
[347660893,1736033446449,-59.82998872,0.00019178,2]
[347660894,1736033446458,-500.0,0.00019178,2]
[347660895,1736033446468,-500.0,0.00019178,2]
[347660896,1736033446478,-500.0,0.00019178,2]
[347660897,1736033446487,-500.0,0.00019178,2]
[347660898,1736033446496,-500.0,0.00019178,2]
[347660899,1736033446505,-755.37,0.00019178,2]
[347660900,1736033446514,-256.459272,0.00019178,2]
[347660901,1736033446523,-256.459272,0.00019178,2]
[347660902,1736033446532,-500.0,0.00019178,2]
[347660903,1736033446542,-735.81,0.00019178,2]
[347660904,1736033446551,-256.459272,0.00019178,2]
[347660905,1736033446561,-256.459272,0.00019178,2]
[347660906,1736033446571,-158.737041,0.00019178,2]
[347660907,1736033446579,-158.737041,0.00019178,2]
[347660908,1736033446589,-158.737041,0.00019178,2]
[347660909,1736033446598,-158.737041,0.00019178,2]
[347660910,1736033446607,-500.0,0.00019178,2]
[347660911,1736033446617,-500.0,0.00019178,2]
[347660912,1736033446626,-500.0,0.00019178,2]
[347660913,1736033446635,-500.0,0.00019178,2]
[347660914,1736033446644,-500.0,0.00019178,2]
[347660915,1736033446654,-151.0,0.00019178,2]
[347660916,1736033446663,-151.0,0.00019178,2]
[347660917,1736033446676,-163.51808348,0.00019178,2]
[347660918,1736033446689,-336.48191652,0.00019178,2]
[347660919,1736033446699,-521.70780296,0.00019178,2]
[347660920,1736033446711,-500.0,0.00019178,2]
[347660921,1736033446721,-8499.25,0.00019178,2]
[347660922,1736033446731,-500.0,0.00019178,2]
[347660923,1736033446741,-500.0,0.00019178,2]
[347660924,1736033446751,-500.0,0.00019178,2]
[347660925,1736033446762,-500.0,0.00019178,2]
[347660926,1736033446772,-384.804741,0.00019178,2]
[347660927,1736033446782,-384.804741,0.00019178,2]
[347660928,1736033446791,-500.0,0.00019178,2]
[347660929,1736033446802,-384.804741,0.00019178,2]
[347660930,1736033446812,-384.804741,0.00019178,2]
[347660931,1736033446821,-500.0,0.00019178,2]
[347660932,1736033446832,-649.59,0.00019178,2]
[347660933,1736033446847,-500.0,0.00019178,2]
[347660934,1736033446856,-500.0,0.00019178,2]
[347660935,1736033446867,-500.0,0.00019178,2]
[347660936,1736033446877,-500.0,0.00019178,2]
[347660937,1736033446888,-500.0,0.00019178,2]
[347660938,1736033446898,-151.0,0.00019178,2]
[347660939,1736033446909,-202.99920308,0.00019178,2]
[347660940,1736033479783,5000.0,0.00025,120]
[347660941,1736033486848,5000.0,0.00025,120]
[347660942,1736033496024,5000.0,0.00025,120]
[347660943,1736033517278,5000.0,0.00025,120]
[347660944,1736033523443,5000.0,0.00025,120]
[347660945,1736033538203,233.0,0.00025,120]
[347660946,1736033546503,9411.81,0.00025,120]
[347660947,1736033557281,200.0,0.00025,120]
[347660950,1736033647809,200.0,0.00025,120]
[347660952,1736033975310,10386.04047499,0.00014002,2]
[347660953,1736034246196,228.873837,0.00013973,2]
[347660955,1736034305668,202.99,0.00025,120]
[347660985,1736034632758,-3198.65972491,0.00014988,2]
[347660986,1736034632767,-3198.65972491,0.00014992,2]
[347660987,1736034632777,-3198.65972491,0.00014995,2]
[347660988,1736034632787,-283.35363434,0.00017571,2]
[347660989,1736034632796,-192.82506778,0.00017827,2]
[347660990,1736034632806,-312.134,0.00017927,2]
[347660991,1736034632815,-356.2923903,0.00018151,2]
[347660992,1736034632829,-455.058,0.0001822,2]
[347660993,1736034632840,-300.0,0.00018431,2]
[347660994,1736034632851,-4480.0,0.00018431,2]
[347660995,1736034632860,-9651.87794838,0.00018433,2]
[347660996,1736034632872,-9651.87794838,0.00018893,2]
[347660997,1736034632882,-651.3093525,0.00018986,2]
[347660998,1736034632891,-500.0,0.00018986,2]
[347660999,1736034632901,-9651.87794838,0.0001902,2]
[347661000,1736034632911,-153.46,0.00019068,2]
[347661001,1736034632920,-153.5079275,0.00019068,2]
[347661002,1736034632929,-214.1837381,0.00019068,2]
[347661004,1736034632940,-500.0,0.00019078,2]
[347661006,1736034632949,-167.63220536,0.00019078,2]
[347661007,1736034632959,-341.0,0.000191,8]
[347661009,1736034632968,-500.0,0.00019125,2]
[347661011,1736034632978,-166.1,0.00019166,2]
[347661012,1736034632988,-500.0,0.00019173,2]
[347661014,1736034632998,-236.89675964,0.00019177,2]
[347661016,1736034633007,-201.71,0.00019177,2]
[347661018,1736034633017,-192.32012328,0.00019177,2]
[347661019,1736034633027,-500.0,0.00019177,2]
[347661021,1736034633036,-500.0,0.00019177,2]
[347661023,1736034633046,-500.0,0.00019177,2]
[347661025,1736034633056,-500.0,0.00019177,2]
[347661026,1736034633066,-500.0,0.00019177,2]
[347661028,1736034633075,-500.0,0.00019177,2]
[347661030,1736034633086,-500.0,0.00019177,2]
[347661031,1736034633095,-500.0,0.00019177,2]
[347661032,1736034633104,-500.0,0.00019177,2]
[347661033,1736034633114,-500.0,0.00019177,2]
[347661034,1736034633123,-500.0,0.00019177,2]
[347661035,1736034633133,-600.0,0.00019177,2]
[347661037,1736034633142,-619.35816953,0.00019177,2]
[347661039,1736034633152,-500.0,0.00019177,2]
[347661041,1736034633162,-500.0,0.00019177,2]
[347661043,1736034633172,-500.0,0.00019177,2]
[347661045,1736034633182,-500.0,0.00019177,2]
[347661047,1736034633192,-500.0,0.00019177,2]
[347661049,1736034633201,-500.0,0.00019177,2]
[347661051,1736034633211,-500.0,0.00019177,2]
[347661053,1736034633221,-500.0,0.00019177,2]
[347661055,1736034633231,-500.0,0.00019177,2]
[347661057,1736034633240,-500.0,0.00019177,2]
[347661058,1736034633250,-500.0,0.00019177,2]
[347661059,1736034633260,-500.0,0.00019177,2]
[347661060,1736034633271,-500.0,0.00019177,2]
[347661061,1736034633281,-500.0,0.00019177,2]
[347661062,1736034633291,-500.0,0.00019177,2]
[347661063,1736034633300,-500.0,0.00019177,2]
[347661064,1736034633310,-500.0,0.00019177,2]
[347661065,1736034633320,-500.0,0.00019177,2]
[347661066,1736034633330,-500.0,0.00019177,2]
[347661067,1736034633339,-500.0,0.00019177,2]
[347661068,1736034633349,-500.0,0.00019177,2]
[347661069,1736034633358,-500.0,0.00019177,2]
[347661070,1736034633368,-500.0,0.00019177,2]
[347661071,1736034633378,-500.0,0.00019177,2]
[347661072,1736034633387,-500.0,0.00019177,2]
[347661073,1736034633397,-500.0,0.00019177,2]
[347661074,1736034633406,-500.0,0.00019177,2]
[347661075,1736034633416,-500.0,0.00019177,2]
[347661076,1736034633426,-500.0,0.00019177,2]
[347661077,1736034633435,-500.0,0.00019177,2]
[347661078,1736034633445,-500.0,0.00019177,2]
[347661079,1736034633454,-500.0,0.00019177,2]
[347661080,1736034633464,-500.0,0.00019177,2]
[347661081,1736034633473,-285.0,0.00019177,2]
[347661082,1736034633483,-500.0,0.00019177,2]
[347661083,1736034633494,-500.0,0.00019177,2]
[347661084,1736034633503,-500.0,0.00019177,2]
[347661085,1736034633513,-500.0,0.00019177,2]
[347661086,1736034633523,-500.0,0.00019177,2]
[347661087,1736034633532,-500.0,0.00019177,2]
[347661088,1736034633542,-500.0,0.00019177,2]
[347661089,1736034633552,-500.0,0.00019177,2]
[347661090,1736034633562,-500.0,0.00019177,2]
[347661091,1736034633571,-629.73968054,0.00019177,2]
[347661092,1736034633581,-500.0,0.00019177,2]
[347661093,1736034633591,-500.0,0.00019177,2]
[347661094,1736034633601,-500.0,0.00019177,2]
[347661095,1736034633611,-500.0,0.00019177,2]
[347661096,1736034633620,-500.0,0.00019177,2]
[347661097,1736034633630,-500.0,0.00019177,2]
[347661098,1736034633640,-500.0,0.00019177,2]
[347661099,1736034633649,-500.0,0.00019177,2]
[347661100,1736034633659,-500.0,0.00019177,2]
[347661101,1736034633671,-500.0,0.00019177,2]
[347661102,1736034633680,-500.0,0.00019177,2]
[347661103,1736034633691,-500.0,0.00019177,2]
[347661104,1736034633701,-500.0,0.00019177,2]
[347661105,1736034633710,-500.0,0.00019177,2]
[347661106,1736034633720,-500.0,0.00019177,2]
[347661107,1736034633730,-209.60440331,0.00019177,2]
[347661108,1736034633740,-500.0,0.00019177,2]
[347661109,1736034633750,-164.6689073,0.00019177,2]
[347661110,1736034633760,-8381.74331791,0.00019178,2]
[347661111,1736034633770,-56994.49294716,0.00019178,2]
[347661112,1736034633780,-151.0,0.00019178,2]
[347661113,1736034633790,-151.0,0.00019178,2]
[347661114,1736034633800,-151.0,0.00019178,2]
[347661115,1736034633810,-164.317782,0.00019178,2]
[347661116,1736034633820,-164.317782,0.00019178,2]
[347661117,1736034633831,-164.317782,0.00019178,2]
[347661118,1736034633840,-164.317782,0.00019178,2]
[347661119,1736034633850,-164.317782,0.00019178,2]
[347661120,1736034633860,-500.0,0.00019178,2]
[347661121,1736034633869,-500.0,0.00019178,2]
[347661122,1736034633879,-500.0,0.00019178,2]
[347661123,1736034633889,-500.0,0.00019178,2]
[347661124,1736034633899,-500.0,0.00019178,2]
[347661125,1736034633909,-433.23094804,0.00019178,2]
[347661126,1736034633920,-500.0,0.00019178,2]
[347661127,1736034633930,-500.0,0.00019178,2]
[347661128,1736034633940,-174.71807731,0.00019178,2]
[347661129,1736034633949,-500.0,0.00019178,2]
[347661130,1736034633959,-500.0,0.00019178,2]
[347661131,1736034633969,-500.0,0.00019178,2]
[347661132,1736034633978,-500.0,0.00019178,2]
[347661133,1736034633988,-228.66607758,0.00019178,2]
[347661134,1736034634002,-271.33392242,0.00019178,2]
[347661135,1736034634011,-500.0,0.00019178,2]
[347661136,1736034634020,-500.0,0.00019178,2]
[347661137,1736034634031,-500.0,0.00019178,2]
[347661138,1736034634040,-0.98607758,0.00019178,2]
[347661139,1736034634052,-355.5,0.00019178,2]
[347661140,1736034634064,-143.51392242,0.00019178,2]
[347661141,1736034634074,-500.0,0.00019178,2]
[347661142,1736034634083,-500.0,0.00019178,2]
[347661143,1736034634093,-500.0,0.00019178,2]
[347661144,1736034634102,-503.33,0.00019178,2]
[347661145,1736034634111,-539.84,0.00019178,2]
[347661146,1736034634121,-500.0,0.00019178,2]
[347661147,1736034634130,-522.17,0.00019178,2]
[347661148,1736034634139,-1330.74,0.00019178,2]
[347661149,1736034634148,-500.0,0.00019178,2]
[347661150,1736034634158,-151.0,0.00019178,2]
[347661151,1736034634168,-151.0,0.00019178,2]
[347661152,1736034634179,-151.0,0.00019178,2]
[347661153,1736034634189,-500.0,0.00019178,2]
[347661154,1736034634199,-500.0,0.00019178,2]
[347661155,1736034634208,-500.0,0.00019178,2]
[347661156,1736034634217,-187.203684,0.00019178,2]
[347661157,1736034634227,-500.0,0.00019178,2]
[347661158,1736034634236,-500.0,0.00019178,2]
[347661159,1736034634245,-723.9,0.00019178,2]
[347661160,1736034634255,-500.0,0.00019178,2]
[347661161,1736034634264,-500.0,0.00019178,2]
[347661162,1736034634274,-705.15,0.00019178,2]
[347661163,1736034634283,-780.39,0.00019178,2]
[347661164,1736034634292,-500.0,0.00019178,2]
[347661165,1736034634301,-151.0,0.00019178,2]
[347661166,1736034634310,-151.0,0.00019178,2]
[347661167,1736034634320,-151.0,0.00019178,2]
[347661168,1736034634329,-500.0,0.00019178,2]
[347661169,1736034634338,-151.0,0.00019178,2]
[347661170,1736034634347,-151.0,0.00019178,2]
[347661171,1736034634356,-151.0,0.00019178,2]
[347661172,1736034634366,-500.0,0.00019178,2]
[347661173,1736034634376,-500.0,0.00019178,2]
[347661174,1736034634385,-500.0,0.00019178,2]
[347661175,1736034634394,-500.0,0.00019178,2]
[347661176,1736034634404,-86.92807984,0.00019178,2]
[347661286,1736034640900,-413.07192016,0.00019178,2]
[347661287,1736034640910,-57.12807984,0.00019178,2]
[347661297,1736034644158,-442.87192016,0.00019178,2]
[347661298,1736034644169,-151.0,0.00019178,2]
[347661299,1736034644178,-11.00485526,0.00019178,2]
[347661300,1736034644192,-139.99514474,0.00019178,2]
[347661301,1736034644202,-235.48685326,0.00019178,2]
[347661302,1736034644213,-264.51314674,0.00019178,2]
[347661303,1736034644223,-500.0,0.00019178,2]
[347661304,1736034644233,-500.0,0.00019178,2]
[347661305,1736034644242,-500.0,0.00019178,2]
[347661306,1736034644252,-500.0,0.00019178,2]
[347661307,1736034644262,-500.0,0.00019178,2]
[347661308,1736034644271,-500.0,0.00019178,2]
[347661309,1736034644283,-82.97793268,0.00019178,2]
[347661324,1736034646800,-417.02206732,0.00019178,2]
[347661325,1736034646810,-500.0,0.00019178,2]
[347661326,1736034646820,-500.0,0.00019178,2]
[347661327,1736034646834,-622.52,0.00019178,2]
[347661328,1736034646843,-500.0,0.00019178,2]
[347661329,1736034646852,-903.32,0.00019178,2]
[347661330,1736034646862,-500.0,0.00019178,2]
[347661331,1736034646872,-500.0,0.00019178,2]
[347661332,1736034646882,-1179.15,0.00019178,2]
[347661333,1736034646892,-500.0,0.00019178,2]
[347661335,1736034646902,-500.0,0.00019178,2]
[347661337,1736034646913,-500.0,0.00019178,2]
[347661338,1736034646924,-591.18,0.00019178,2]
[347661339,1736034646933,-201.77017221,0.00019178,2]
[347661340,1736034646942,-500.0,0.00019178,2]
[347661341,1736034646954,-722.4,0.00019178,2]
[347661342,1736034646963,-151.0,0.00019178,2]
[347661343,1736034646972,-151.0,0.00019178,2]
[347661344,1736034646981,-151.0,0.00019178,2]
[347661345,1736034646991,-151.0,0.00019178,2]
[347661346,1736034647000,-151.0,0.00019178,2]
[347661347,1736034647010,-500.0,0.00019178,2]
[347661348,1736034647019,-151.0,0.00019178,2]
[347661349,1736034647028,-1131.32,0.00019178,2]
[347661350,1736034647202,-207.3463495,0.00019178,2]
[347661351,1736034647212,-630.99,0.00019178,2]
[347661352,1736034647222,-678.68,0.00019178,2]
[347661353,1736034647231,-1037.05,0.00019178,2]
[347661354,1736034647240,-500.0,0.00019178,2]
[347661355,1736034647249,-683.89,0.00019178,2]
[347661356,1736034647258,-500.0,0.00019178,2]
[347661357,1736034647268,-581.77,0.00019178,2]
[347661358,1736034647278,-500.0,0.00019178,2]
[347661359,1736034647287,-151.0,0.00019178,2]
[347661360,1736034647296,-816.86,0.00019178,2]
[347661361,1736034647306,-500.0,0.00019178,2]
[347661362,1736034647315,-500.0,0.00019178,2]
[347661363,1736034647324,-500.0,0.00019178,2]
[347661364,1736034647334,-500.0,0.00019178,2]
[347661365,1736034647343,-151.0,0.00019178,2]
[347661366,1736034647352,-151.0,0.00019178,2]
[347661367,1736034647362,-290.117404,0.00019178,2]
[347661368,1736034647371,-500.0,0.00019178,2]
[347661369,1736034647383,-500.0,0.00019178,2]
[347661370,1736034647392,-515.35386234,0.00019178,2]
[347661371,1736034647403,-768.36,0.00019178,2]
[347661372,1736034647413,-500.0,0.00019178,2]
[347661373,1736034647423,-500.0,0.00019178,2]
[347661374,1736034647432,-699.08,0.00019178,2]
[347661375,1736034647443,-500.0,0.00019178,2]
[347661376,1736034647452,-1134.48,0.00019178,2]
[347661377,1736034647461,-500.0,0.00019178,2]
[347661378,1736034647472,-500.0,0.00019178,2]
[347661379,1736034647482,-500.0,0.00019178,2]
[347661380,1736034647491,-500.0,0.00019178,2]
[347661381,1736034647501,-500.0,0.00019178,2]
[347661382,1736034647511,-500.0,0.00019178,2]
[347661383,1736034647520,-683.4,0.00019178,2]
[347661384,1736034647530,-500.0,0.00019178,2]
[347661385,1736034647540,-500.0,0.00019178,2]
[347661386,1736034647550,-500.0,0.00019178,2]
[347661387,1736034647559,-151.0,0.00019178,2]
[347661388,1736034647569,-151.0,0.00019178,2]
[347661389,1736034647579,-151.0,0.00019178,2]
[347661390,1736034647588,-151.0,0.00019178,2]
[347661391,1736034647598,-151.0,0.00019178,2]
[347661392,1736034647607,-500.0,0.00019178,2]
[347661393,1736034647617,-151.0,0.00019178,2]
[347661394,1736034647627,-151.0,0.00019178,2]
[347661395,1736034647636,-151.0,0.00019178,2]
[347661396,1736034647647,-151.0,0.00019178,2]
[347661397,1736034647657,-151.0,0.00019178,2]
[347661398,1736034647666,-151.0,0.00019178,2]
[347661399,1736034647679,-151.0,0.00019178,2]
[347661400,1736034647688,-151.0,0.00019178,2]
[347661401,1736034647697,-151.0,0.00019178,2]
[347661402,1736034647706,-500.0,0.00019178,2]
[347661403,1736034647715,-625.78,0.00019178,2]
[347661404,1736034647724,-500.0,0.00019178,2]
[347661405,1736034647733,-1031.25,0.00019178,2]
[347661406,1736034647743,-500.0,0.00019178,2]
[347661407,1736034647752,-500.0,0.00019178,2]
[347661408,1736034647761,-500.0,0.00019178,2]
[347661409,1736034647770,-500.0,0.00019178,2]
[347661410,1736034647780,-500.0,0.00019178,2]
[347661411,1736034647789,-500.0,0.00019178,2]
[347661412,1736034647798,-948.27,0.00019178,2]
[347661413,1736034647807,-500.0,0.00019178,2]
[347661414,1736034647816,-151.0,0.00019178,2]
[347661415,1736034647828,-151.0,0.00019178,2]
[347661416,1736034647837,-151.0,0.00019178,2]
[347661417,1736034647847,-151.0,0.00019178,2]
[347661418,1736034647859,-151.0,0.00019178,2]
[347661419,1736034647870,-151.0,0.00019178,2]
[347661420,1736034647879,-151.0,0.00019178,2]
[347661421,1736034647890,-192.55545,0.00019178,2]
[347661422,1736034647900,-6985.50912184,0.00019178,2]
[347661423,1736034647917,-1159.60087816,0.00019178,2]
[347661424,1736034647926,-500.0,0.00019178,2]
[347661425,1736034647935,-500.0,0.00019178,2]
[347661426,1736034647945,-500.0,0.00019178,2]
[347661427,1736034647955,-500.0,0.00019178,2]
[347661428,1736034647965,-500.0,0.00019178,2]
[347661429,1736034647975,-500.0,0.00019178,2]
[347661430,1736034647985,-1727.5,0.00019178,2]
[347661431,1736034647994,-151.0,0.00019178,2]
[347661432,1736034648004,-151.0,0.00019178,2]
[347661433,1736034648013,-151.0,0.00019178,2]
[347661434,1736034648022,-151.0,0.00019178,2]
[347661435,1736034648031,-151.0,0.00019178,2]
[347661436,1736034648041,-151.0,0.00019178,2]
[347661437,1736034648050,-1388.34,0.00019178,2]
[347661438,1736034648059,-151.0,0.00019178,2]
[347661439,1736034648068,-715.75,0.00019178,2]
[347661440,1736034648078,-151.0,0.00019178,2]
[347661441,1736034648088,-151.0,0.00019178,2]
[347661442,1736034648097,-151.0,0.00019178,2]
[347661443,1736034648106,-151.0,0.00019178,2]
[347661444,1736034648115,-151.0,0.00019178,2]
[347661445,1736034648125,-191.11408,0.00019178,2]
[347661446,1736034648135,-500.0,0.00019178,2]
[347661447,1736034648145,-500.0,0.00019178,2]
[347661448,1736034648154,-500.0,0.00019178,2]
[347661449,1736034648163,-151.0,0.00019178,2]
[347661450,1736034648173,-500.0,0.00019178,2]
[347661451,1736034648182,-151.0,0.00019178,2]
[347661452,1736034648191,-151.0,0.00019178,2]
[347661453,1736034648202,-151.0,0.00019178,2]
[347661454,1736034648211,-151.0,0.00019178,2]
[347661455,1736034648221,-151.0,0.00019178,2]
[347661456,1736034648230,-500.0,0.00019178,2]
[347661457,1736034648239,-151.0,0.00019178,2]
[347661458,1736034648248,-151.0,0.00019178,2]
[347661459,1736034648257,-151.0,0.00019178,2]
[347661460,1736034648266,-151.0,0.00019178,2]
[347661461,1736034648275,-151.0,0.00019178,2]
[347661462,1736034648284,-151.0,0.00019178,2]
[347661463,1736034648293,-175.85304,0.00019178,2]
[347661464,1736034648303,-1085.46,0.00019178,2]
[347661465,1736034648312,-500.0,0.00019178,2]
[347661466,1736034648321,-1436.5,0.00019178,2]
[347661467,1736034648330,-3093.31780528,0.00019178,2]
[347661468,1736034648384,-75.16219472,0.00019178,2]
[347661469,1736034648394,-500.0,0.00019178,2]
[347661470,1736034648403,-788.84,0.00019178,2]
[347661471,1736034648413,-468.81985607,0.00019178,2]
[347661473,1736034751123,809.05540629,0.00025,120]
[347661475,1736035038080,2176.0,0.00025,120]
[347661477,1736035218997,237.430145,0.00013973,2]
[347661478,1736035232555,160.0,0.0002428,120]
[347661480,1736035291341,160.0,0.0002345,120]
[347661481,1736035351284,160.0,0.00023122,120]
[347661483,1736035508360,9147.65554301,0.00014002,2]
[347661484,1736035508394,852.34445699,0.00014002,2]
[347661533,1736035831982,-201.80167949,0.0001713,2]
[347661536,1736035831992,-605.40503847,0.00017988,3]
[347661538,1736035832001,-165.39632,0.00018088,2]
[347661540,1736035832010,-464.272,0.0001822,2]
[347661541,1736035832020,-3825.1302187,0.00018237,2]
[347661543,1736035832030,-196.36476911,0.00018886,2]
[347661545,1736035832039,-651.3093526,0.00018986,2]
[347661547,1736035832049,-300.0,0.00018999,2]
[347661549,1736035832059,-153.0,0.00019,2]
[347661551,1736035832068,-153.6666692,0.00019,2]
[347661553,1736035832077,-153.0,0.00019,2]
[347661555,1736035832086,-214.5513576,0.00019,2]
[347661557,1736035832095,-153.0,0.00019,2]
[347661559,1736035832105,-214.5513576,0.00019,2]
[347661561,1736035832114,-153.6666692,0.00019,2]
[347661563,1736035832124,-153.0,0.00019,2]
[347661565,1736035832133,-442.5872716,0.00019,2]
[347661567,1736035832142,-214.5513576,0.00019,2]
[347661568,1736035832152,-153.0,0.00019,2]
[347661569,1736035832161,-153.0,0.00019,2]
[347661570,1736035832171,-153.0,0.00019,2]
[347661571,1736035832181,-153.0,0.00019,2]
[347661572,1736035832191,-10794.74591837,0.00019045,2]
[347661573,1736035832200,-211.90227843,0.00019078,2]
[347661574,1736035832209,-259.72545958,0.00019078,2]
[347661575,1736035832219,-153.0,0.000191,2]
[347661576,1736035832228,-153.0,0.000191,2]
[347661577,1736035832237,-220.50409862,0.00019177,2]
[347661578,1736035832246,-161.368,0.00019177,2]
[347661579,1736035832256,-500.0,0.00019177,2]
[347661580,1736035832266,-320.32883434,0.00019177,2]
[347661581,1736035832275,-500.0,0.00019177,2]
[347661582,1736035832284,-500.0,0.00019177,2]
[347661583,1736035832294,-636.68766885,0.00019177,2]
[347661584,1736035832303,-578.75032653,0.00019177,2]
[347661585,1736035832312,-500.0,0.00019177,2]
[347661586,1736035832322,-500.0,0.00019177,2]
[347661587,1736035832331,-192.60396246,0.00019177,2]
[347661588,1736035832340,-500.0,0.00019177,2]
[347661589,1736035832349,-500.0,0.00019177,2]
[347661590,1736035832358,-500.0,0.00019177,2]
[347661591,1736035832367,-500.0,0.00019177,2]
[347661592,1736035832375,-455.05187553,0.00019177,2]
[347661593,1736035832385,-500.0,0.00019177,2]
[347661594,1736035832394,-300.0,0.00019177,2]
[347661595,1736035832407,-500.0,0.00019177,2]
[347661596,1736035832415,-500.0,0.00019177,2]
[347661597,1736035832425,-169.44468632,0.00019177,2]
[347661598,1736035832435,-425.00311107,0.00019177,2]
[347661599,1736035832445,-500.0,0.00019177,2]
[347661600,1736035832454,-164.6689073,0.00019177,2]
[347661601,1736035832463,-10360.6359252,0.00019178,2]
[347661602,1736035832473,-35788.20170935,0.00019178,2]
[347661603,1736035832482,-205.167418,0.00019178,2]
[347661604,1736035832491,-205.167418,0.00019178,2]
[347661605,1736035832500,-205.167418,0.00019178,2]
[347661606,1736035832509,-205.167418,0.00019178,2]
[347661607,1736035832519,-205.167418,0.00019178,2]
[347661608,1736035832528,-205.167418,0.00019178,2]
[347661609,1736035832537,-205.167418,0.00019178,2]
[347661610,1736035832546,-205.167418,0.00019178,2]
[347661611,1736035832555,-205.167418,0.00019178,2]
[347661612,1736035832565,-205.167418,0.00019178,2]
[347661613,1736035832574,-205.167418,0.00019178,2]
[347661614,1736035832584,-205.167418,0.00019178,2]
[347661615,1736035832593,-205.167418,0.00019178,2]
[347661616,1736035832602,-205.167418,0.00019178,2]
[347661617,1736035832611,-205.167418,0.00019178,2]
[347661618,1736035832621,-205.167418,0.00019178,2]
[347661619,1736035832630,-205.167418,0.00019178,2]
[347661620,1736035832639,-205.167418,0.00019178,2]
[347661621,1736035832648,-473.39985769,0.00019178,2]
[347661622,1736035832658,-151.0,0.00019178,2]